bitfinex-derivatives/quotes_SOLF0:USTF0_20250905
["timestamp","ask_amount","ask_price","bid_price","bid_amount"]
[1757060890100,4.3383,207.43,207.38,0.03638401]
[1757060890289,7.68,207.42,207.38,0.03638401]
[1757060891092,4.3383,207.43,207.38,0.03638401]
[1757060891492,7.68,207.42,207.38,0.03638401]
[1757060891898,4.3383,207.43,207.38,0.03638401]
[1757060893297,7.68,207.42,207.38,0.03638401]
[1757060893690,4.3383,207.43,207.38,0.03638401]
[1757060894600,7.68,207.42,207.38,0.03638401]
[1757060894803,4.3383,207.43,207.38,0.03638401]
[1757060895300,7.68,207.42,207.38,0.03638401]
[1757060895501,4.3383,207.43,207.38,0.03638401]
[1757060896102,7.68,207.42,207.38,0.03638401]
[1757060896302,4.3383,207.43,207.38,0.03638401]
[1757060896998,7.68,207.42,207.38,7.96638401]
[1757060897400,4.3383,207.43,207.38,7.96638401]
[1757060897593,7.68,207.42,207.38,7.96638401]
[1757060897798,4.3383,207.43,207.38,7.96638401]
[1757060898193,8.02,207.39,207.38,0.03638401]
[1757060899304,5.64894681,207.4,207.33,4.06541209]
[1757060899305,1.31024681,207.4,207.33,4.06541209]
[1757060899504,8.02,207.39,207.33,4.06541209]
[1757060899908,12.36,207.34,207.33,4.06541209]
[1757060900404,8.02,207.34,207.33,4.06541209]
[1757060900604,0.03630229,207.36,207.31,0.03185729]
[1757060901605,8.02,207.35,207.31,0.03185729]
[1757060902104,4.37590229,207.36,207.31,0.03185729]
[1757060902600,8.02,207.35,207.31,0.03185729]
[1757060902805,8.02,207.35,207.31,1.3421041]
[1757060903004,4.37590229,207.36,207.31,1.3421041]
[1757060903199,8.02,207.35,207.31,1.3421041]
[1757060903397,4.37590229,207.36,207.31,1.3421041]
[1757060903601,8.02,207.35,207.31,1.3421041]
[1757060903802,4.37590229,207.36,207.31,1.3421041]
[1757060904301,8.02,207.35,207.31,1.3421041]
[1757060905303,4.37590229,207.36,207.31,1.3421041]
[1757060906208,8.02,207.35,207.31,0.03185729]
[1757060906502,8.02,207.35,207.31,1.3421041]
[1757060906897,4.37590229,207.36,207.31,1.3421041]
[1757060907296,8.02,207.35,207.31,1.3421041]
[1757060908106,4.37590229,207.36,207.31,1.3421041]
[1757060908308,8.02,207.35,207.31,1.3421041]
[1757060908509,4.37590229,207.36,207.31,1.3421041]
[1757060909507,8.02,207.35,207.31,1.3421041]
[1757060909909,4.37590229,207.36,207.31,1.3421041]
[1757060910099,12.3599,207.35,207.31,0.03185729]
[1757060910502,4.3399,207.35,207.31,0.03185729]
[1757060910711,8.02,207.34,207.31,0.03185729]
[1757060911208,4.3399,207.35,207.31,0.03185729]
[1757060911815,8.02,207.34,207.31,0.03185729]
[1757060912305,4.3399,207.35,207.31,0.03185729]
[1757060912503,8.02,207.34,207.31,0.03185729]
[1757060912703,4.3399,207.35,207.31,0.03185729]
[1757060913011,8.02,207.34,207.31,0.03185729]
[1757060913211,4.3399,207.35,207.31,0.03185729]
[1757060914010,8.02,207.34,207.31,0.03185729]
[1757060914210,4.3399,207.35,207.31,0.03185729]
[1757060914613,8.02,207.34,207.31,0.03185729]
[1757060916018,4.3399,207.35,207.31,0.03185729]
[1757060917014,8.02,207.34,207.31,0.03185729]
[1757060917416,4.3399,207.35,207.31,0.03185729]
[1757060917916,8.02,207.34,207.31,0.03185729]
[1757060918116,4.3399,207.35,207.31,0.03185729]
[1757060918618,8.02,207.34,207.31,0.03185729]
[1757060919320,4.3399,207.35,207.31,0.03185729]
[1757060919912,8.02,207.34,207.31,0.03185729]
[1757060920117,4.3399,207.35,207.31,0.03185729]
[1757060920320,8.02,207.34,207.31,0.03185729]
[1757060921013,4.3399,207.35,207.31,0.03185729]
[1757060921219,8.02,207.34,207.31,0.03185729]
[1757060921416,4.3399,207.35,207.31,0.03185729]
[1757060922418,8.02,207.34,207.31,0.03185729]
[1757060922918,4.3399,207.35,207.31,0.03185729]
[1757060923821,8.02,207.34,207.31,0.03185729]
[1757060924021,4.3399,207.35,207.31,0.03185729]
[1757060924518,8.02,207.34,207.31,0.03185729]
[1757060924718,4.3399,207.35,207.31,0.03185729]
[1757060925121,8.02,207.34,207.31,0.03185729]
[1757060925323,4.3399,207.35,207.31,0.03185729]
[1757060926823,8.02,207.35,207.31,0.03185729]
[1757060928014,7.67,207.35,207.31,0.03185729]
[1757060928420,0.03630229,207.36,207.31,0.03185729]
[1757060928619,7.67,207.35,207.31,0.03185729]
[1757060928823,0.03630229,207.36,207.31,0.03185729]
[1757060929020,7.67,207.34,207.31,0.03185729]
[1757060930525,7.67,207.32,207.28,4.06541209]
[1757060930727,8.98024681,207.29,207.28,4.06541209]
[1757060930918,8.98024681,207.29,207.25,5.41841711]
[1757060931124,8.98024681,207.29,207.22,7.9281117]
[1757060931125,7.67,207.26,207.22,7.9281117]
[1757060931315,1.31024681,207.24,207.21,7.9281117]
[1757060931518,7.67,207.23,207.21,7.9281117]
[1757060933727,1.31024681,207.24,207.21,7.9281117]
[1757060934430,7.67,207.23,207.21,7.9281117]
[1757060936933,7.67,207.22,207.21,7.9281117]
[1757060937629,120.21058992,207.25,207.21,7.9281117]
[1757060937832,7.67,207.24,207.21,7.9281117]
[1757060938033,7.67,207.24,207.17,7.54]
[1757060944538,7.67,207.24,207.19,7.54]
[1757060944733,7.67,207.24,207.18,4.3433]
[1757060944943,7.67,207.24,207.19,7.54]
[1757060945534,7.67,207.24,207.18,4.3433]
[1757060945841,7.70058992,207.25,207.17,7.54]
[1757060946236,12.04258992,207.25,207.17,7.54]
[1757060947343,7.67,207.23,207.17,7.54]
[1757060948044,12.0125,207.23,207.17,7.54]
[1757060950141,7.67,207.23,207.17,7.54]
[1757060953345,0.03058992,207.25,207.19,7.54]
[1757060953847,12.0115,207.27,207.19,7.54]
[1757060954046,0.03669515,207.24,207.19,7.54]
[1757060954247,0.03669515,207.24,207.18,2.05062738]
[1757060954649,0.03669515,207.24,207.19,7.54]
[1757060955253,0.03669515,207.24,207.18,2.05062738]
[1757060955548,0.03669515,207.24,207.19,7.54]
[1757060955942,0.03669515,207.24,207.2,7.54]
[1757060956747,0.03669515,207.24,207.19,4.3429]
[1757060957147,0.03669515,207.24,207.2,7.54]
[1757060957747,0.03669515,207.24,207.19,4.3429]
[1757060957946,0.03669515,207.24,207.2,7.54]
[1757060958146,0.03669515,207.24,207.2,7.53]
[1757060958350,0.03669515,207.24,207.19,4.3429]
[1757060958551,0.03669515,207.24,207.2,7.53]
[1757060958747,0.03669515,207.24,207.19,4.3429]
[1757060958947,0.03669515,207.24,207.2,7.53]
[1757060959150,0.03669515,207.24,207.19,4.3429]
[1757060959753,0.03669515,207.24,207.2,7.53]
[1757060960249,0.03669515,207.24,207.19,4.3429]
[1757060960750,0.03669515,207.24,207.2,7.53]
[1757060962251,0.03669515,207.24,207.19,4.3429]
[1757060963152,0.03669515,207.24,207.2,7.53]
[1757060963448,0.03669515,207.24,207.19,4.3429]
[1757060963951,0.03669515,207.24,207.2,7.53]
[1757060964953,0.03669515,207.24,207.19,4.3429]
[1757060965447,0.03669515,207.24,207.2,7.53]
[1757060965853,8.13,207.23,207.2,7.53]
[1757060967755,8.13,207.23,207.17,4.3435]
[1757060968054,8.13,207.23,207.18,7.53]
[1757060968444,8.13,207.23,207.17,4.3435]
[1757060969054,8.13,207.23,207.18,7.53]
[1757060969254,8.13,207.23,207.17,4.3435]
[1757060969454,8.13,207.23,207.18,7.53]
[1757060969649,8.13,207.23,207.17,4.3435]
[1757060969850,8.13,207.23,207.17,7.53]
[1757060974162,0.03669515,207.24,207.17,7.53]
[1757060974353,0.03669515,207.24,207.2,7.53]
[1757060974558,0.03669515,207.24,207.19,2.05062738]
[1757060974964,0.03669515,207.24,207.2,7.53]
[1757060975758,0.03669515,207.24,207.19,2.05062738]
[1757060976058,0.03669515,207.24,207.2,7.53]
[1757060976456,0.03669515,207.24,207.19,6.39372738]
[1757060976658,0.03669515,207.24,207.2,7.53]
[1757060977057,0.03669515,207.24,207.19,6.39372738]
[1757060977253,0.03669515,207.24,207.2,7.53]
[1757060978053,0.03669515,207.24,207.19,6.39372738]
[1757060978254,0.03669515,207.24,207.2,7.53]
[1757060978763,0.03669515,207.24,207.19,6.39372738]
[1757060979160,0.03669515,207.24,207.2,7.53]
[1757060981065,0.03669515,207.24,207.19,6.39372738]
[1757060981258,0.03669515,207.24,207.2,7.53]
[1757060981660,0.03669515,207.24,207.2,11.8727]
[1757060981960,0.03669515,207.24,207.2,7.53]
[1757060982161,8.13,207.3,207.23,7.53]
[1757060983762,8.13,207.3,207.25,4.3418]
[1757060983964,8.13,207.3,207.26,7.53]
[1757060984164,5.34161534,207.33,207.26,7.53]
[1757060984367,8.13,207.32,207.26,7.53]
[1757060992364,7.86,207.34,207.23,7.61]
[1757060994868,7.86,207.34,207.24,4.342]
[1757060995072,7.86,207.34,207.25,7.61]
[1757060999472,7.86,207.32,207.25,8.9210871]
[1757061000272,7.86,207.32,207.26,7.61]
[1757061004573,7.86,207.3,207.23,11.9522]
[1757061004981,1.3110871,207.31,207.23,11.9522]
[1757061005172,7.86,207.3,207.23,11.9522]
[1757061005870,4.341,207.3,207.23,11.9522]
[1757061006071,7.86,207.29,207.23,11.9522]
[1757061006577,7.86,207.34,207.25,7.61]
[1757061006776,7.86,207.32,207.25,7.61]
[1757061008977,7.86,207.32,207.25,5.6527871]
[1757061009178,7.86,207.32,207.26,7.61]
[1757061009381,7.86,207.32,207.28,7.61]
[1757061009777,7.86,207.32,207.27,1.3110871]
[1757061010078,77.7126525,207.35,207.28,7.61]
[1757061012882,77.7126525,207.35,207.28,8.9210871]
[1757061014381,77.7126525,207.35,207.3,1.3110871]
[1757061015282,7.86,207.39,207.31,7.61]
[1757061015577,5.34161534,207.4,207.24,31.93683999]
[1757061015578,5.34161534,207.4,207.35,7.61]
[1757061016785,7.86,207.39,207.35,7.61]
[1757061016977,5.34161534,207.4,207.35,7.61]
[1757061017178,7.86,207.39,207.35,7.61]
[1757061017781,7.86,207.39,207.34,1.3110871]
[1757061017987,7.86,207.39,207.33,8.11]
[1757061018185,7.86,207.39,207.35,8.11]
[1757061018389,7.86,207.39,207.34,1.3110871]
[1757061018688,5.34161534,207.4,207.35,8.11]
[1757061019089,7.67,207.39,207.35,8.11]
[1757061019283,5.34161534,207.4,207.35,8.11]
[1757061019495,7.67,207.38,207.32,1.3110871]
[1757061019789,7.67,207.38,207.31,1.3110871]
[1757061020003,7.67,207.38,207.31,8.11]
[1757061020190,7.67,207.38,207.31,9.4210871]
[1757061020886,12.0093,207.38,207.31,9.4210871]
[1757061021988,4.3395,207.37,207.31,9.4210871]
[1757061022185,7.67,207.37,207.31,8.11]
[1757061022386,7.67,207.35,207.28,12.16683999]
[1757061022585,1.3110871,207.36,207.28,12.16683999]
[1757061022781,7.67,207.33,207.28,4.05683999]
[1757061023181,7.67,207.3,207.28,4.05683999]
[1757061023488,4.3408,207.31,207.28,4.05683999]
[1757061023686,7.67,207.3,207.28,4.05683999]
[1757061023890,4.3408,207.31,207.28,4.05683999]
[1757061024192,7.67,207.29,207.28,4.05683999]
[1757061026886,4.3413,207.28,207.22,7.9281117]
[1757061027088,7.67,207.27,207.18,4.05683999]
[1757061027291,7.67,207.27,207.18,5.36792709]
[1757061027486,7.67,207.27,207.19,8.11]
[1757061027686,7.67,207.27,207.21,8.11]
[1757061028994,4.3417,207.26,207.21,8.11]
[1757061029993,7.67,207.25,207.21,8.11]
[1757061030983,7.67,207.25,207.2,1.3110871]
[1757061031283,7.67,207.25,207.21,8.11]
[1757061031489,7.67,207.25,207.2,1.3110871]
[1757061031684,7.67,207.25,207.21,8.11]
[1757061031889,7.67,207.25,207.2,1.3110871]
[1757061032294,7.67,207.25,207.21,8.11]
[1757061032694,7.67,207.25,207.2,1.3110871]
[1757061032894,7.67,207.25,207.21,8.11]
[1757061033293,7.67,207.25,207.2,1.3110871]
[1757061033691,7.67,207.25,207.21,8.11]
[1757061033893,7.67,207.25,207.2,1.3110871]
[1757061034094,7.67,207.25,207.21,8.11]
[1757061034294,7.67,207.25,207.2,1.3110871]
[1757061034495,12.0117,207.26,207.21,8.11]
[1757061034698,12.0117,207.26,207.2,9.4210871]
[1757061036403,12.0117,207.26,207.2,8.11]
[1757061036702,7.67,207.25,207.22,8.11]
[1757061038601,12.0113,207.28,207.22,8.11]
[1757061038902,12.0113,207.28,207.22,9.4210871]
[1757061041710,12.0113,207.28,207.22,8.11]
[1757061041910,4.3416,207.27,207.22,8.11]
[1757061042212,7.67,207.28,207.22,8.11]
[1757061042407,7.67,207.27,207.18,9.4210871]
[1757061043011,7.67,207.27,207.18,8.11]
[1757061043210,7.67,207.27,207.18,9.4210871]
[1757061043412,7.67,207.24,207.18,9.4210871]
[1757061045611,7.67,207.24,207.18,8.11]
[1757061045913,12.012,207.25,207.19,1.3110871]
[1757061046613,4.3423,207.24,207.19,1.3110871]
[1757061047015,4.3423,207.24,207.18,9.4210871]
[1757061047810,7.67,207.23,207.18,9.4210871]
[1757061048011,4.3423,207.24,207.18,1.3110871]
[1757061048319,4.3424,207.23,207.18,1.3110871]
[1757061048612,7.48,207.22,207.19,7.82]
[1757061049011,7.48,207.22,207.18,1.3110871]
[1757061049614,7.48,207.22,207.19,7.82]
[1757061049812,7.48,207.23,207.19,7.82]
[1757061050014,4.3422,207.24,207.19,7.82]
[1757061050518,7.48,207.23,207.19,7.82]
[1757061051117,4.3422,207.24,207.19,7.82]
[1757061051423,7.48,207.23,207.19,7.82]
[1757061051717,7.48,207.22,207.19,7.82]
[1757061052319,7.48,207.22,207.18,1.3110871]
[1757061052520,7.48,207.22,207.19,7.82]
[1757061053526,7.48,207.22,207.19,9.1310871]
[1757061054023,7.48,207.22,207.2,7.82]
[1757061056420,4.3424,207.23,207.19,1.3110871]
[1757061056625,7.48,207.21,207.14,7.82]
[1757061056925,4.3427,207.22,207.17,9.1310871]
[1757061057125,7.48,207.21,207.17,9.1310871]
[1757061057325,7.48,207.21,207.17,7.82]
[1757061057624,7.48,207.21,207.18,7.82]
[1757061058324,7.48,207.21,207.17,1.3110871]
[1757061058824,11.8227,207.22,207.18,7.82]
[1757061059024,11.8227,207.22,207.17,1.3110871]
[1757061059324,11.8227,207.22,207.18,1.3110871]
[1757061059522,11.8227,207.22,207.16,7.82]
[1757061060126,4.3429,207.21,207.16,7.82]
[1757061060322,7.48,207.22,207.16,7.82]
[1757061061534,7.48,207.22,207.12,11.87683999]
[1757061061720,7.48,207.19,207.12,4.05683999]
[1757061061920,7.48,207.17,207.12,4.05683999]
[1757061062225,7.48,207.15,207.12,4.05683999]
[1757061062425,67.5643,207.18,207.12,4.05683999]
[1757061062730,7.48,207.17,207.12,4.05683999]
[1757061063225,186.9243,207.18,207.12,4.05683999]
[1757061063523,7.48,207.17,207.12,4.05683999]
[1757061063730,7.48,207.18,207.12,4.05683999]
[1757061064828,126.84,207.18,207.12,4.05683999]
[1757061065129,7.48,207.18,207.12,4.05683999]
[1757061065327,7.48,207.18,207.12,11.87683999]
[1757061065526,2.04994769,207.23,207.12,11.87683999]
[1757061065527,7.48,207.23,207.13,7.82]
[1757061065724,7.48,207.23,207.16,7.82]
[1757061067727,7.48,207.32,207.2,2.04994769]
[1757061068028,7.48,207.32,207.22,7.82]
[1757061068430,7.48,207.32,207.18,7.82]
[1757061068930,7.48,207.29,207.18,7.82]
[1757061069125,5.34161534,207.24,207.18,7.82]
[1757061069629,7.48,207.23,207.18,7.82]
[1757061069829,5.34161534,207.24,207.18,7.82]
[1757061070030,7.48,207.23,207.18,7.82]
[1757061070332,7.48,207.21,207.09,7.82]
[1757061070827,4.3434,207.18,207.09,12.1652]
[1757061071032,11.8234,207.18,207.09,12.1652]
[1757061073329,11.8234,207.18,207.1,7.82]
[1757061073626,4.3429,207.21,207.12,7.82]
[1757061073931,4.3429,207.21,207.13,7.82]
[1757061075024,4.3432,207.19,207.13,7.82]
[1757061077932,7.48,207.16,207.09,7.82]
[1757061078737,4.3442,207.14,207.09,7.82]
[1757061078926,7.72,207.13,207.09,7.82]
[1757061079427,7.72,207.13,207.08,4.05683999]
[1757061079830,7.72,207.13,207.09,7.49]
[1757061080132,7.72,207.13,207.08,4.05683999]
[1757061080631,7.72,207.13,207.09,7.49]
[1757061080832,4.3438,207.16,207.09,7.49]
[1757061082533,4.3438,207.16,207.08,8.40223999]
[1757061082534,67.5723,207.16,207.08,4.05683999]
[1757061082733,7.72,207.15,207.08,4.05683999]
[1757061082936,67.5723,207.16,207.05,11.54683999]
[1757061083332,7.72,207.15,207.05,11.54683999]
[1757061083637,12.064,207.15,207.06,7.49]
[1757061084138,12.0635,207.18,207.05,4.05683999]
[1757061084339,12.0635,207.18,207.08,7.49]
[1757061085642,12.0635,207.18,207.08,11.8352]
[1757061085847,4.3437,207.17,207.08,7.49]
[1757061089136,4.3441,207.15,207.08,7.49]
[1757061089340,7.72,207.15,207.05,11.54683999]
[1757061089542,67.5708,207.16,207.05,11.54683999]
[1757061090144,7.72,207.15,207.05,11.54683999]
[1757061090344,67.5708,207.16,207.05,11.54683999]
[1757061090541,4.3447,207.12,207.05,11.54683999]
[1757061091243,4.345,207.11,207.05,11.54683999]
[1757061093749,4.345,207.11,207.05,7.49]
[1757061101757,4.3452,207.1,207.03,7.49]
[1757061105257,7.72,207.16,207.04,2.04994769]
[1757061105457,7.72,207.19,207.08,7.49]
[1757061105658,7.72,207.19,207.11,7.49]
[1757061106860,4.3434,207.18,207.11,7.49]
[1757061107067,5.34161534,207.21,207.13,2.04994769]
[1757061107261,5.34161534,207.21,207.14,7.49]
[1757061110961,9.68451534,207.21,207.14,7.49]
[1757061112867,7.79,207.18,207.14,7.49]
[1757061113066,7.79,207.18,207.13,2.04994769]
[1757061113263,7.79,207.18,207.14,7.4]
[1757061113463,12.1328,207.21,207.14,7.4]
[1757061117967,4.3431,207.2,207.14,7.4]
[1757061118169,4.3431,207.2,207.12,2.04994769]
[1757061118370,12.1331,207.2,207.13,7.4]
[1757061120173,7.79,207.2,207.13,7.4]
[1757061121270,7.79,207.23,207.13,7.4]
[1757061121470,7.79,207.23,207.18,1.31202061]
[1757061121669,7.79,207.26,207.18,1.31202061]
[1757061122266,67.5417,207.25,207.18,1.31202061]
[1757061122467,7.79,207.21,207.13,1.31202061]
[1757061123172,12.1335,207.18,207.12,7.4]
[1757061123478,12.1335,207.18,207.12,8.71202061]
[1757061125069,7.79,207.16,207.12,8.71202061]
[1757061125573,7.79,207.16,207.13,7.4]
[1757061127179,7.79,207.14,207.09,7.4]
[1757061127478,7.79,207.12,207.08,4.05683999]
[1757061127675,1.31202061,207.13,207.08,4.05683999]
[1757061127877,7.79,207.12,207.08,4.05683999]
[1757061128577,1.31202061,207.13,207.08,4.05683999]
[1757061128976,7.79,207.12,207.08,4.05683999]
[1757061129181,7.79,207.12,207.02,8.71202061]
[1757061132481,7.79,207.12,207.02,7.4]
[1757061132683,7.79,207.12,207.03,1.31202061]
[1757061134886,12.1355,207.08,207.04,7.4]
[1757061135185,4.3455,207.08,207.04,7.4]
[1757061135386,7.79,207.07,207.04,7.4]
[1757061137185,7.79,207.06,207.0,12.7688606]
[1757061138887,4.3461,207.05,207.0,1.31202061]
[1757061139082,12.2661,207.05,207.01,7.91]
[1757061139283,4.3461,207.05,207.01,7.91]
[1757061139476,7.92,207.04,207.01,7.91]
[1757061139685,4.3461,207.05,207.02,1.31202061]
[1757061139883,4.3461,207.05,207.02,9.22202061]
[1757061140083,4.3461,207.05,207.02,7.91]
[1757061140283,12.2661,207.05,207.02,7.91]
[1757061140982,7.92,207.05,207.01,1.31202061]
[1757061141383,7.92,207.05,207.02,7.91]
[1757061143689,12.2663,207.05,207.02,7.91]
[1757061143984,67.5983,207.08,206.98,4.89745016]
[1757061144186,7.92,207.06,206.99,1.31202061]
[1757061144879,4.3467,207.03,206.99,1.31202061]
[1757061145081,7.92,207.02,206.99,1.31202061]
[1757061145285,7.92,207.02,206.99,9.22202061]
[1757061147689,7.92,207.02,206.99,7.91]
[1757061147886,12.2669,207.01,206.97,13.2788606]
[1757061148390,4.3474,206.99,206.97,11.96683999]
[1757061149289,4.3474,206.99,206.97,4.05683999]
[1757061149487,4.3474,206.99,206.94,11.96683999]
[1757061149687,12.2677,206.98,206.94,11.96683999]
[1757061150987,7.92,206.97,206.94,4.05683999]
[1757061151291,12.268,206.96,206.94,4.05683999]
[1757061152292,7.92,206.96,206.94,4.05683999]
[1757061152495,12.2675,206.99,206.94,5.3688606]
[1757061152690,7.92,206.99,206.94,5.3688606]
[1757061152988,4.3469,207.01,206.95,7.91]
[1757061153194,4.3469,207.01,206.96,1.31202061]
[1757061153396,7.92,207.03,206.98,1.31202061]
[1757061153694,7.92,207.03,206.99,7.91]
[1757061154591,4.3465,207.04,206.99,7.91]
[1757061154791,120.53202061,207.07,206.99,7.91]
[1757061154989,7.92,207.05,206.98,1.31202061]
[1757061155994,12.2667,207.02,206.98,9.22202061]
[1757061156295,4.3467,207.02,206.98,9.22202061]
[1757061156594,7.92,207.01,206.98,9.22202061]
[1757061156793,7.92,207.01,206.98,7.91]
[1757061157791,4.3467,207.02,206.97,1.31202061]
[1757061157990,7.92,207.02,206.95,1.31202061]
[1757061158492,4.3473,207.0,206.95,1.31202061]
[1757061158690,7.92,207.02,206.95,1.31202061]
[1757061159896,12.2675,206.99,206.95,9.22202061]
[1757061160398,12.2675,206.99,206.96,7.91]
[1757061160697,4.347,207.01,206.97,1.31202061]
[1757061160998,4.347,207.01,206.98,7.91]
[1757061161494,12.267,207.01,206.98,7.91]
[1757061163900,4.3473,207.0,206.97,1.31202061]
[1757061164197,12.2673,207.0,206.97,1.31202061]
[1757061164400,12.2673,207.0,206.97,9.22202061]
[1757061164698,12.2675,206.99,206.97,1.31202061]
[1757061165800,4.3475,206.99,206.97,1.31202061]
[1757061166005,4.3475,206.99,206.97,9.22202061]
[1757061166701,4.347,207.01,206.97,9.22202061]
[1757061166900,12.267,207.01,206.97,9.22202061]
[1757061167201,7.92,207.0,206.97,9.22202061]
[1757061167901,7.92,207.0,206.97,1.31202061]
[1757061168605,12.2673,207.0,206.97,1.31202061]
[1757061168801,7.99,206.99,206.97,1.31202061]
[1757061169702,7.99,206.99,206.95,1.31202061]
[1757061169903,7.99,206.99,206.95,8.88202061]
[1757061170305,7.99,206.99,206.96,7.57]
[1757061171615,12.3367,207.03,206.97,1.31202061]
[1757061171905,7.99,207.05,207.02,7.57]
[1757061172104,127.15,207.08,207.01,1.31202061]
[1757061172302,12.3355,207.08,207.01,1.31202061]
[1757061172503,127.15,207.08,207.01,1.31202061]
[1757061172702,127.15,207.08,206.99,7.57]
[1757061172906,127.15,207.08,207.0,1.31202061]
[1757061173106,127.15,207.08,206.99,7.57]
[1757061173306,127.15,207.08,207.0,1.31202061]
[1757061173608,7.99,207.08,207.0,1.31202061]
[1757061173810,0.03213113,207.06,207.05,7.57]
[1757061174804,8.02213113,207.06,207.02,7.60554145]
[1757061175004,7.99,207.05,207.02,0.03554145]
[1757061175204,7.99,207.05,207.02,1.34756206]
[1757061175604,7.99,207.05,207.02,8.91756206]
[1757061178209,0.03213113,207.06,207.02,8.91756206]
[1757061178508,8.02213113,207.06,207.02,8.91756206]
[1757061179410,0.03213113,207.06,207.02,8.91756206]
[1757061179614,8.02213113,207.06,207.02,8.91756206]
[1757061181412,0.03213113,207.06,207.05,7.57]
[1757061182706,311.08,207.17,207.05,2.53267415]
[1757061182913,319.07,207.17,207.09,7.57]
[1757061184116,319.07,207.17,207.11,0.03268332]
[1757061186816,4.344,207.16,207.11,0.03268332]
[1757061187021,7.99,207.15,207.11,0.03268332]
[1757061187415,4.344,207.16,207.11,0.03268332]
[1757061187923,7.99,207.15,207.11,0.03268332]
[1757061188120,4.344,207.16,207.11,0.03268332]
[1757061188322,7.99,207.15,207.11,0.03268332]
[1757061188924,4.344,207.16,207.11,0.03268332]
[1757061189123,7.99,207.15,207.11,0.03268332]
[1757061189424,4.344,207.16,207.11,0.03268332]
[1757061190123,7.99,207.15,207.11,0.03268332]
[1757061190525,4.344,207.16,207.11,0.03268332]
[1757061190825,7.99,207.15,207.11,0.03268332]
[1757061191232,4.344,207.16,207.11,0.03268332]
[1757061191520,7.99,207.15,207.11,0.03268332]
[1757061192328,4.344,207.16,207.11,0.03268332]
[1757061192736,7.99,207.15,207.11,0.03268332]
[1757061192937,4.344,207.16,207.11,0.03268332]
[1757061193337,7.99,207.15,207.12,7.57]
[1757061193536,7.99,207.16,207.11,0.03268332]
[1757061194134,430.16,207.17,207.11,0.03268332]
[1757061194439,434.5037,207.17,207.11,0.03268332]
[1757061194841,7.99,207.16,207.11,0.03268332]
[1757061195036,434.5037,207.17,207.11,0.03268332]
[1757061196046,7.99,207.17,207.11,0.03268332]
[1757061196341,7.99,207.17,207.12,7.57]
[1757061196742,7.99,207.17,207.11,7.60268332]
[1757061197942,7.99,207.17,207.11,11.94738332]
[1757061198147,7.47,207.2,207.13,7.73]
[1757061199148,7.47,207.2,207.11,0.03268332]
[1757061199347,75.0285,207.2,207.11,0.03268332]
[1757061199546,7.47,207.18,207.11,0.03268332]
[1757061200343,4.344,207.16,207.11,0.03268332]
[1757061200545,7.47,207.15,207.11,0.03268332]
[1757061200944,4.344,207.16,207.11,0.03268332]
[1757061201140,7.47,207.15,207.11,0.03268332]
[1757061201451,4.344,207.16,207.11,0.03268332]
[1757061202044,4.3441,207.15,207.11,0.03268332]
[1757061202551,4.3444,207.14,207.11,0.03268332]
[1757061202943,7.47,207.13,207.11,0.03268332]
[1757061203144,4.3444,207.14,207.11,0.03268332]
[1757061203649,7.47,207.13,207.11,0.03268332]
[1757061203842,4.3444,207.14,207.11,0.03268332]
[1757061204043,7.47,207.13,207.11,0.03268332]